fUST/lending_fUST_20260607
["ID","MTS","AMOUNT","RATE_DAILY","PERIOD"]
[424371537,1780805441000,-570.14,0.00019178,2]
[424371519,1780805441000,-3049.64,0.00019178,2]
[424371525,1780805441000,-1945.51,0.00019178,2]
[424371521,1780805441000,-1244.06,0.00019178,2]
[424371523,1780805441000,-1044.27,0.00019178,2]
[424371509,1780805441000,-500.0,0.00019178,2]
[424371529,1780805441000,-500.0,0.00019178,2]
[424371535,1780805441000,-500.0,0.00019178,2]
[424371545,1780805441000,-500.0,0.00019178,2]
[424371555,1780805441000,-1204.12,0.00019178,2]
[424371547,1780805441000,-500.0,0.00019178,2]
[424371549,1780805441000,-500.0,0.00019178,2]
[424371551,1780805441000,-716.03,0.00019178,2]
[424371561,1780805441000,-1397.71,0.00019178,2]
[424371563,1780805441000,-500.0,0.00019178,2]
[424371565,1780805441000,-500.0,0.00019178,2]
[424371567,1780805441000,-500.0,0.00019178,2]
[424371557,1780805441000,-1879.71,0.00019178,2]
[424371569,1780805441000,-500.0,0.00019178,2]
[424371553,1780805441000,-742.43,0.00019178,2]
[424371559,1780805441000,-500.0,0.00019178,2]
[424371571,1780805441000,-916.52,0.00019178,2]
[424371575,1780805441000,-1384.5,0.00019178,2]
[424371506,1780805441000,-1218.24,0.00019178,2]
[424371533,1780805441000,-500.0,0.00019178,2]
[424371501,1780805441000,-500.0,0.00019178,2]
[424371460,1780805441000,-500.0,0.00019178,2]
[424371511,1780805441000,-4397.1,0.00019178,2]
[424371573,1780805441000,-3493.92,0.00019178,2]
[424371459,1780805441000,-500.0,0.00019178,2]
[424371467,1780805441000,-477.08139006,0.00019178,2]
[424371457,1780805441000,-1849.27,0.00019178,2]
[424371458,1780805441000,-510.0,0.00019178,2]
[424371456,1780805441000,-500.0,0.00019178,2]
[424371465,1780805441000,-500.0,0.00019178,2]
[424371461,1780805441000,-500.0,0.00019178,2]
[424371463,1780805441000,-500.0,0.00019178,2]
[424371469,1780805441000,-500.0,0.00019178,2]
[424371471,1780805441000,-500.0,0.00019178,2]
[424371472,1780805441000,-500.0,0.00019178,2]
[424371478,1780805441000,-505.06628344,0.00019178,2]
[424371476,1780805441000,-500.0,0.00019178,2]
[424371474,1780805441000,-1182.66,0.00019178,2]
[424371480,1780805441000,-500.0,0.00019178,2]
[424371484,1780805441000,-500.0,0.00019178,2]
[424371482,1780805441000,-1272.21,0.00019178,2]
[424371486,1780805441000,-500.0,0.00019178,2]
[424371494,1780805441000,-294.49253033,0.00019178,2]
[424371490,1780805441000,-500.0,0.00019178,2]
[424371488,1780805441000,-639.11,0.00019178,2]
[424371492,1780805441000,-832.98,0.00019178,2]
[424371496,1780805441000,-310.23772725,0.00019178,2]
[424371498,1780805441000,-574.00055177,0.00019178,2]
[424371500,1780805441000,-500.0,0.00019178,2]
[424371503,1780805441000,-500.0,0.00019178,2]
[424371515,1780805441000,-500.0,0.00019178,2]
[424371513,1780805441000,-500.0,0.00019178,2]
[424371517,1780805441000,-500.0,0.00019178,2]
[424371577,1780805441000,-500.0,0.00019178,2]
[424371531,1780805441000,-500.0,0.00019178,2]
[424371588,1780805441000,-500.0,0.00019178,2]
[424371618,1780805441000,-783.71,0.00019178,2]
[424371623,1780805441000,-500.0,0.00019178,2]
[424371620,1780805441000,-716.65,0.00019178,2]
[424371638,1780805441000,-500.0,0.00019178,2]
[424371635,1780805441000,-3165.74,0.00019178,2]
[424371633,1780805441000,-500.0,0.00019178,2]
[424371630,1780805441000,-500.0,0.00019178,2]
[424371629,1780805441000,-500.0,0.00019178,2]
[424371631,1780805441000,-500.0,0.00019178,2]
[424371632,1780805441000,-500.0,0.00019178,2]
[424371639,1780805441000,-500.0,0.00019178,2]
[424371641,1780805441000,-500.0,0.00019178,2]
[424371637,1780805441000,-500.0,0.00019178,2]
[424371640,1780805441000,-592.69,0.00019178,2]
[424371621,1780805441000,-1925.81,0.00019178,2]
[424371636,1780805441000,-1569.4,0.00019178,2]
[424371643,1780805441000,-500.0,0.00019178,2]
[424371653,1780805441000,-500.0,0.00019178,2]
[424371654,1780805441000,-1000.0,0.00019178,2]
[424371642,1780805441000,-500.0,0.00019178,2]
[424371644,1780805441000,-892.87,0.00019178,2]
[424371645,1780805441000,-751.72,0.00019178,2]
[424371650,1780805441000,-500.0,0.00019178,2]
[424371647,1780805441000,-500.0,0.00019178,2]
[424371651,1780805441000,-500.0,0.00019178,2]
[424371648,1780805441000,-2160.56,0.00019178,2]
[424371646,1780805441000,-594.05,0.00019178,2]
[424371649,1780805441000,-500.0,0.00019178,2]
[424371652,1780805441000,-500.0,0.00019178,2]
[424371592,1780805441000,-474.51848,0.00019178,2]
[424371634,1780805441000,-500.0,0.00019178,2]
[424371624,1780805441000,-500.0,0.00019178,2]
[424371619,1780805441000,-597.47621989,0.00019178,2]
[424371622,1780805441000,-500.0,0.00019178,2]
[424371590,1780805441000,-500.0,0.00019178,2]
[424371594,1780805441000,-516.39592895,0.00019178,2]
[424371596,1780805441000,-500.0,0.00019178,2]
[424371581,1780805441000,-761.61,0.00019178,2]
[424371582,1780805441000,-500.0,0.00019178,2]
[424371598,1780805441000,-500.0,0.00019178,2]
[424371579,1780805441000,-300.0,0.00019178,2]
[424371600,1780805441000,-500.0,0.00019178,2]
[424371586,1780805441000,-500.0,0.00019178,2]
[424371584,1780805441000,-2136.43,0.00019178,2]
[424371603,1780805441000,-500.0,0.00019178,2]
[424371625,1780805441000,-500.0,0.00019178,2]
[424371610,1780805441000,-523.42985403,0.00019178,2]
[424371614,1780805441000,-521.19,0.00019178,2]
[424371606,1780805441000,-500.0,0.00019178,2]
[424371604,1780805441000,-500.0,0.00019178,2]
[424371605,1780805441000,-5947.17,0.00019178,2]
[424371615,1780805441000,-1012.27,0.00019178,2]
[424371617,1780805441000,-500.0,0.00019178,2]
[424371613,1780805441000,-500.0,0.00019178,2]
[424371626,1780805441000,-181.7061156,0.00019178,2]
[424371627,1780805441000,-500.0,0.00019178,2]
[424371616,1780805441000,-500.0,0.00019178,2]
[424371628,1780805441000,-500.0,0.00019178,2]
[424371611,1780805441000,-500.0,0.00019178,2]
[424371612,1780805441000,-504.53748101,0.00019178,2]
[424371607,1780805441000,-500.0,0.00019178,2]
[424371602,1780805441000,-500.0,0.00019178,2]
[424371609,1780805441000,-371.46903377,0.00019178,2]
[424371655,1780805441000,-500.0,0.00019178,2]
[424371608,1780805441000,-3606.91,0.00019178,2]
[424371661,1780805442000,-500.0,0.00019178,2]
[424371662,1780805442000,-500.0,0.00019178,2]
[424371663,1780805442000,-583.82495888,0.00019178,2]
[424371658,1780805442000,-500.0,0.00019178,2]
[424371656,1780805442000,-689.4,0.00019178,2]
[424371660,1780805442000,-500.0,0.00019178,2]
[424371667,1780805442000,-500.0,0.00019178,2]
[424371657,1780805442000,-500.0,0.00019178,2]
[424371664,1780805442000,-500.0,0.00019178,2]
[424371659,1780805442000,-500.0,0.00019178,2]
[424371673,1780805442000,-500.0,0.00019178,2]
[424371665,1780805442000,-500.0,0.00019178,2]
[424371669,1780805442000,-82478.65299441,0.00019178,2]
[424371668,1780805442000,-5550.93,0.00019178,2]
[424371671,1780805442000,-147.8354268,0.00019178,2]
[424371670,1780805442000,-228.52700559,0.00019178,2]
[424371674,1780805442000,-394.69258586,0.00019178,2]
[424371672,1780805442000,-352.1645732,0.00019178,2]
[424371675,1780805442000,-157.97741414,0.00019178,2]
[424371676,1780805442000,-351.67745984,0.00019178,2]
[424371666,1780805442000,-500.0,0.00019178,2]
[424371685,1780805447000,-500.0,0.00019178,2]
[424371687,1780805447000,-1140.4,0.00019178,2]
[424371690,1780805447000,-500.0,0.00019178,2]
[424371684,1780805447000,-295.73254016,0.00019178,2]
[424371688,1780805447000,-500.0,0.00019178,2]
[424371686,1780805447000,-5364.47,0.00019178,2]
[424371691,1780805447000,-320.13059194,0.00019178,2]
[424371692,1780805447000,-1656.32897106,0.00019178,2]
[424371689,1780805447000,-1489.33,0.00019178,2]
[424371704,1780805788000,-300.0,9.893e-05,2]
[424371705,1780805842000,-500.0,9.893e-05,2]
[424371707,1780805895000,-500.0,9.893e-05,2]
[424371708,1780805949000,-500.0,9.892e-05,2]
[424371709,1780806002000,-500.0,9.892e-05,2]
[424371716,1780806055000,-428.5121394,9.891e-05,2]
[424371717,1780806056000,305.72440214,2.01e-05,2]
[424371719,1780806108000,-500.0,9.891e-05,2]
[424371723,1780806162000,-500.0,9.891e-05,2]
[424371725,1780806174000,-500.0,9.891e-05,2]
[424371727,1780806227000,-500.0,9.89e-05,2]
[424371731,1780806314000,-500.0,9.894e-05,2]
[424371732,1780806314000,-371.93608789,9.894e-05,2]
[424371733,1780806314000,-500.0,9.894e-05,2]
[424371735,1780806314000,-500.0,9.894e-05,2]
[424371734,1780806314000,-500.0,9.894e-05,2]
[424371739,1780806314000,-5000.0,9.895e-05,2]
[424371736,1780806314000,-500.0,9.894e-05,2]
[424371740,1780806314000,-1059.88515616,9.895e-05,2]
[424371738,1780806314000,-500.0,9.894e-05,2]
[424371741,1780806314000,-68.17875595,0.0001,2]
[424371737,1780806314000,-500.0,9.894e-05,2]
[424371742,1780806317000,-770.00532528,0.0001,2]
[424371743,1780806320000,5000.0,9.891e-05,2]
[424371744,1780806321000,-300.0,0.00010193,2]
[424371745,1780806321000,-300.0,0.00010193,2]
[424371748,1780806321000,-300.0,0.00010193,2]
[424371749,1780806321000,-300.0,0.00010193,2]
[424371746,1780806321000,-300.0,0.00010193,2]
[424371747,1780806321000,-300.0,0.00010193,2]
[424371751,1780806321000,-300.0,0.00010193,2]
[424371752,1780806321000,-300.0,0.00010193,2]
[424371754,1780806321000,-300.0,0.00010193,2]
[424371753,1780806321000,-300.0,0.00010193,2]
[424371757,1780806321000,-300.0,0.00010193,2]
[424371756,1780806321000,-300.0,0.00010193,2]
[424371755,1780806321000,-300.0,0.00010193,2]
[424371758,1780806321000,-29.99467472,0.00010193,2]
[424371750,1780806321000,-300.0,0.00010193,2]
[424371759,1780806326000,-270.00532528,0.00010193,2]
[424371760,1780806326000,-600.0,0.00010193,2]
[424371762,1780806332000,-366.60402244,0.00011319,2]
[424371763,1780806332000,-266.798096,0.0001132,2]
[424371761,1780806332000,-720.0,0.00011212,2]
[424371765,1780806332000,-266.798096,0.00011797,2]
[424371764,1780806332000,-2951.23466512,0.000115,2]
[424371766,1780806332000,-4558.55979516,0.00012,2]
[424371767,1780806339000,-10000.0,0.00012,2]
[424371768,1780806341000,-8143.13037257,0.00012,2]
[424371769,1780806342000,1856.86962743,0.0001188,2]
[424371770,1780806443000,-458.42978342,0.0001139,2]
[424371771,1780806457000,-1120.51842758,0.0001139,2]
[424371772,1780806457000,-3143.13037257,0.0001188,2]
[424371774,1780806464000,-266.798096,0.00012274,2]
[424371775,1780806464000,-266.798096,0.0001275,2]
[424371773,1780806464000,-430.21512088,0.00012172,2]
[424371778,1780806469000,-1000.0,0.00013829,2]
[424371777,1780806469000,-266.798096,0.00013703,2]
[424371776,1780806469000,-266.798096,0.00013227,2]
[424371779,1780806471000,3238.94369497,0.00013,2]
[424371780,1780806478000,-1761.05630503,0.00013,2]
[424371785,1780806484000,-300.0,0.0001414,2]
[424371784,1780806484000,-300.0,0.0001414,2]
[424371781,1780806484000,-300.0,0.0001414,2]
[424371783,1780806484000,-300.0,0.0001414,2]
[424371787,1780806484000,-300.0,0.0001414,2]
[424371782,1780806484000,-300.0,0.0001414,2]
[424371789,1780806484000,-300.0,0.0001414,2]
[424371786,1780806484000,-300.0,0.0001414,2]
[424371791,1780806484000,-300.0,0.0001414,2]
[424371790,1780806484000,-300.0,0.0001414,2]
[424371794,1780806484000,-300.0,0.0001414,2]
[424371792,1780806484000,-300.0,0.0001414,2]
[424371793,1780806484000,-300.0,0.0001414,2]
[424371795,1780806484000,-300.0,0.0001414,2]
[424371796,1780806484000,-1578.948211,0.00014255,2]
[424371788,1780806484000,-300.0,0.0001414,2]
[424371798,1780806491000,-256.62281571,0.00015554,2]
[424371799,1780806493000,1903.37266826,0.00015398,2]
[424371801,1780806506000,-500.0,0.00016438,2]
[424371804,1780806506000,-557.68487264,0.00016783,7]
[424371802,1780806506000,-500.0,0.00016438,2]
[424371800,1780806506000,-3096.62733174,0.00015398,2]
[424371805,1780806506000,-244.6549729,0.00016975,2]
[424371806,1780806506000,-4488.2924992,0.00017,2]
[424371803,1780806506000,-612.74032352,0.00016438,2]
[424371807,1780806508000,-10000.0,0.00017,2]
[424371808,1780806513000,-9000.0,0.00017,2]
[424371809,1780806568000,-822.14,0.0001683,2]
[424371810,1780806580000,-822.14,0.0001683,2]
[424371811,1780806592000,-626.71,0.0001683,2]
[424371812,1780806605000,-626.71,0.0001683,2]
[424371813,1780806618000,-500.0,0.0001683,2]
[424371814,1780806629000,-500.0,0.0001683,2]
[424371860,1780806642000,-300.0,0.00017339,2]
[424371857,1780806642000,-300.0,0.00017339,2]
[424371859,1780806642000,-300.0,0.00017339,2]
[424371856,1780806642000,-300.0,0.00017339,2]
[424371854,1780806642000,-300.0,0.00017339,2]
[424371855,1780806642000,-300.0,0.00017339,2]
[424371853,1780806642000,-300.0,0.00017339,2]
[424371850,1780806642000,-6520.67580763,0.00017,2]
[424371849,1780806642000,-602.3,0.0001683,2]
[424371851,1780806642000,-179.63597099,0.0001712,2]
[424371848,1780806642000,-500.0,0.0001683,2]
[424371858,1780806642000,-300.0,0.00017339,2]
[424371852,1780806642000,-1578.948211,0.00017121,2]
[424371863,1780806642000,-300.0,0.00017339,2]
[424371872,1780806642000,-212.25751583,0.00019068,2]
[424371861,1780806642000,-300.0,0.00017339,2]
[424371862,1780806642000,-300.0,0.00017339,2]
[424371868,1780806642000,-600.0,0.00017685,2]
[424371867,1780806642000,-300.0,0.00017339,2]
[424371865,1780806642000,-300.0,0.00017339,2]
[424371866,1780806642000,-300.0,0.00017339,2]
[424371870,1780806642000,-1234.9,0.00018904,2]
[424371864,1780806642000,-300.0,0.00017339,2]
[424371869,1780806642000,-1234.9,0.0001863,2]
[424371871,1780806642000,-378.84648769,0.00018999,2]
[424371873,1780806642000,-2647.23222922,0.00019078,2]
[424371874,1780806642000,-500.0,0.00019177,2]
[424371875,1780806642000,-1578.39937764,0.00019178,2]
[424371876,1780806642000,-3823.16515283,0.00019178,2]
[424371878,1780806643000,-198.1389512,0.00019178,2]
[424371885,1780806643000,-3172.29168879,0.00019178,2]
[424371886,1780806643000,-500.0,0.00019178,2]
[424371884,1780806643000,-1364.66642054,0.00019178,2]
[424371919,1780806644000,-812.26,0.00019178,2]
[424371923,1780806644000,-500.0,0.00019178,2]
[424371924,1780806644000,-590.71,0.00019178,2]
[424371920,1780806644000,-500.0,0.00019178,2]
[424371916,1780806644000,-500.0,0.00019178,2]
[424371921,1780806644000,-500.0,0.00019178,2]
[424371922,1780806644000,-500.0,0.00019178,2]
[424371927,1780806644000,-159.73382262,0.00019178,2]
[424371928,1780806644000,-708.0,0.00019178,2]
[424371929,1780806644000,-500.0,0.00019178,2]
[424371925,1780806644000,-500.0,0.00019178,2]
[424371930,1780806644000,-500.0,0.00019178,2]
[424371926,1780806644000,-500.0,0.00019178,2]
[424371938,1780806644000,-1514.17,0.00019178,2]
[424371934,1780806644000,-500.0,0.00019178,2]
[424371932,1780806644000,-500.0,0.00019178,2]
[424371933,1780806644000,-1111.29,0.00019178,2]
[424371931,1780806644000,-626.55331307,0.00019178,2]
[424371937,1780806644000,-777.57,0.00019178,2]
[424371939,1780806644000,-496.90171932,0.00019178,2]
[424371942,1780806644000,-500.0,0.00019178,2]
[424371941,1780806644000,-500.0,0.00019178,2]
[424371936,1780806644000,-500.0,0.00019178,2]
[424371940,1780806644000,-500.0,0.00019178,2]
[424371945,1780806644000,-500.0,0.00019178,2]
[424371918,1780806644000,-569.42,0.00019178,2]
[424371935,1780806644000,-1236.15,0.00019178,2]
[424371917,1780806644000,-2254.33,0.00019178,2]
[424371943,1780806644000,-238.66759131,0.00019178,2]
[424371913,1780806644000,-500.0,0.00019178,2]
[424371887,1780806644000,-500.0,0.00019178,2]
[424371889,1780806644000,-199.29841962,0.00019178,2]
[424371892,1780806644000,-500.0,0.00019178,2]
[424371893,1780806644000,-500.0,0.00019178,2]
[424371888,1780806644000,-500.0,0.00019178,2]
[424371891,1780806644000,-546.21,0.00019178,2]
[424371890,1780806644000,-500.0,0.00019178,2]
[424371894,1780806644000,-500.0,0.00019178,2]
[424371896,1780806644000,-500.0,0.00019178,2]
[424371895,1780806644000,-512.95383888,0.00019178,2]
[424371897,1780806644000,-750.4,0.00019178,2]
[424371899,1780806644000,-738.48,0.00019178,2]
[424371898,1780806644000,-1691.56,0.00019178,2]
[424371904,1780806644000,-512.17,0.00019178,2]
[424371906,1780806644000,-2264.3,0.00019178,2]
[424371903,1780806644000,-500.0,0.00019178,2]
[424371902,1780806644000,-500.0,0.00019178,2]
[424371901,1780806644000,-332.46177367,0.00019178,2]
[424371900,1780806644000,-167.53822633,0.00019178,2]
[424371905,1780806644000,-500.0,0.00019178,2]
[424371911,1780806644000,-301.68870498,0.00019178,2]
[424371909,1780806644000,-500.0,0.00019178,2]
[424371910,1780806644000,-500.0,0.00019178,2]
[424371908,1780806644000,-500.0,0.00019178,2]
[424371912,1780806644000,-500.0,0.00019178,2]
[424371907,1780806644000,-500.0,0.00019178,2]
[424371914,1780806644000,-500.0,0.00019178,2]
[424371915,1780806644000,-500.0,0.00019178,2]
[424371946,1780806644000,-1874.6,0.00019178,2]
[424371965,1780806644000,-2454.34329667,0.00019178,2]
[424371944,1780806644000,-500.0,0.00019178,2]
[424371981,1780806644000,-500.0,0.00019178,2]
[424371982,1780806644000,-1254.46,0.00019178,2]
[424371984,1780806644000,-500.0,0.00019178,2]
[424371983,1780806644000,-2047.41,0.00019178,2]
[424371979,1780806644000,-500.0,0.00019178,2]
[424371980,1780806644000,-500.0,0.00019178,2]
[424371990,1780806644000,-970.1,0.00019178,2]
[424371986,1780806644000,-500.0,0.00019178,2]
[424371991,1780806644000,-500.0,0.00019178,2]
[424371985,1780806644000,-685.36,0.00019178,2]
[424371987,1780806644000,-500.0,0.00019178,2]
[424371988,1780806644000,-500.0,0.00019178,2]
[424371989,1780806644000,-500.0,0.00019178,2]
[424371996,1780806644000,-500.0,0.00019178,2]
[424371992,1780806644000,-1376.62,0.00019178,2]
[424371993,1780806644000,-500.0,0.00019178,2]
[424371995,1780806644000,-500.0,0.00019178,2]
[424371994,1780806644000,-500.0,0.00019178,2]
[424372000,1780806644000,-500.0,0.00019178,2]
[424371998,1780806644000,-500.0,0.00019178,2]
[424371999,1780806644000,-500.0,0.00019178,2]
[424372003,1780806644000,-500.0,0.00019178,2]
[424371997,1780806644000,-500.0,0.00019178,2]
[424372001,1780806644000,-3033.83,0.00019178,2]
[424372002,1780806644000,-500.0,0.00019178,2]
[424372004,1780806644000,-500.0,0.00019178,2]
[424372006,1780806644000,-500.0,0.00019178,2]
[424371978,1780806644000,-1167.48,0.00019178,2]
[424371976,1780806644000,-691.39,0.00019178,2]
[424371947,1780806644000,-1047.86,0.00019178,2]
[424371973,1780806644000,-546.82,0.00019178,2]
[424371972,1780806644000,-500.0,0.00019178,2]
[424371948,1780806644000,-500.0,0.00019178,2]
[424371952,1780806644000,-500.0,0.00019178,2]
[424371951,1780806644000,-558.9472567,0.00019178,2]
[424371954,1780806644000,-500.0,0.00019178,2]
[424371953,1780806644000,-294.03440402,0.00019178,2]
[424371950,1780806644000,-500.0,0.00019178,2]
[424371949,1780806644000,-500.0,0.00019178,2]
[424371956,1780806644000,-977.13,0.00019178,2]
[424371955,1780806644000,-1349.62,0.00019178,2]
[424371957,1780806644000,-500.0,0.00019178,2]
[424371958,1780806644000,-500.0,0.00019178,2]
[424371964,1780806644000,-500.0,0.00019178,2]
[424371959,1780806644000,-500.0,0.00019178,2]
[424371962,1780806644000,-500.0,0.00019178,2]
[424371961,1780806644000,-500.0,0.00019178,2]
[424371977,1780806644000,-500.0,0.00019178,2]
[424371975,1780806644000,-1219.2,0.00019178,2]
[424371971,1780806644000,-1280.38,0.00019178,2]
[424371969,1780806644000,-500.0,0.00019178,2]
[424371967,1780806644000,-500.0,0.00019178,2]
[424371968,1780806644000,-500.0,0.00019178,2]
[424371974,1780806644000,-564.66807487,0.00019178,2]
[424371963,1780806644000,-543.64577959,0.00019178,2]
[424371966,1780806644000,-468.22670333,0.00019178,2]
[424371960,1780806644000,-500.0,0.00019178,2]
[424372005,1780806644000,-500.0,0.00019178,2]
[424371970,1780806644000,-902.03,0.00019178,2]
[424372047,1780806645000,-568.0,0.00019178,2]
[424372051,1780806645000,-500.0,0.00019178,2]
[424372050,1780806645000,-500.0,0.00019178,2]
[424372049,1780806645000,-2021.72,0.00019178,2]
[424372044,1780806645000,-500.0,0.00019178,2]
[424372039,1780806645000,-500.0,0.00019178,2]
[424372046,1780806645000,-4122.08,0.00019178,2]
[424372045,1780806645000,-985.74,0.00019178,2]
[424372043,1780806645000,-500.0,0.00019178,2]
[424372042,1780806645000,-500.0,0.00019178,2]
[424372052,1780806645000,-500.0,0.00019178,2]
[424372048,1780806645000,-1086.71,0.00019178,2]
[424372055,1780806645000,-1099.05,0.00019178,2]
[424372066,1780806645000,-1501.52,0.00019178,2]
[424372053,1780806645000,-1114.67,0.00019178,2]
[424372057,1780806645000,-2030.49,0.00019178,2]
[424372056,1780806645000,-393.5717548,0.00019178,2]
[424372060,1780806645000,-500.0,0.00019178,2]
[424372058,1780806645000,-500.0,0.00019178,2]
[424372061,1780806645000,-1000.0,0.00019178,2]
[424372059,1780806645000,-500.0,0.00019178,2]
[424372064,1780806645000,-500.0,0.00019178,2]
[424372065,1780806645000,-231.01565609,0.00019178,2]
[424372068,1780806645000,-500.0,0.00019178,2]
[424372063,1780806645000,-500.0,0.00019178,2]
[424372062,1780806645000,-500.0,0.00019178,2]
[424372038,1780806645000,-500.0,0.00019178,2]
[424372067,1780806645000,-2046.41,0.00019178,2]
[424372054,1780806645000,-772.87,0.00019178,2]
[424372041,1780806645000,-500.0,0.00019178,2]
[424372029,1780806645000,-553.67,0.00019178,2]
[424372037,1780806645000,-226.58951498,0.00019178,2]
[424372009,1780806645000,-500.0,0.00019178,2]
[424372008,1780806645000,-500.0,0.00019178,2]
[424372069,1780806645000,-1260.44,0.00019178,2]
[424372011,1780806645000,-500.0,0.00019178,2]
[424372012,1780806645000,-1192.22,0.00019178,2]
[424372010,1780806645000,-500.0,0.00019178,2]
[424372015,1780806645000,-3810.18,0.00019178,2]
[424372013,1780806645000,-500.0,0.00019178,2]
[424372016,1780806645000,-500.0,0.00019178,2]
[424372014,1780806645000,-500.0,0.00019178,2]
[424372017,1780806645000,-500.0,0.00019178,2]
[424372019,1780806645000,-500.0,0.00019178,2]
[424372018,1780806645000,-500.0,0.00019178,2]
[424372021,1780806645000,-3456.62,0.00019178,2]
[424372020,1780806645000,-500.0,0.00019178,2]
[424372022,1780806645000,-500.0,0.00019178,2]
[424372027,1780806645000,-500.0,0.00019178,2]
[424372026,1780806645000,-500.0,0.00019178,2]
[424372025,1780806645000,-546.39,0.00019178,2]
[424372024,1780806645000,-500.0,0.00019178,2]
[424372023,1780806645000,-729.88,0.00019178,2]
[424372028,1780806645000,-500.0,0.00019178,2]
[424372033,1780806645000,-500.0,0.00019178,2]
[424372034,1780806645000,-500.0,0.00019178,2]
[424372030,1780806645000,-500.0,0.00019178,2]
[424372031,1780806645000,-500.0,0.00019178,2]
[424372032,1780806645000,-500.0,0.00019178,2]
[424372035,1780806645000,-7124.81,0.00019178,2]
[424372036,1780806645000,-500.0,0.00019178,2]
[424372040,1780806645000,-500.0,0.00019178,2]
[424372007,1780806645000,-686.2,0.00019178,2]
[424372071,1780806645000,-2320.22,0.00019178,2]
[424372072,1780806645000,-3668.47,0.00019178,2]
[424372105,1780806645000,-798.27,0.00019178,2]
[424372108,1780806645000,-500.0,0.00019178,2]
[424372107,1780806645000,-915.06,0.00019178,2]
[424372109,1780806645000,-4213.89,0.00019178,2]
[424372112,1780806645000,-2041.32,0.00019178,2]
[424372111,1780806645000,-500.0,0.00019178,2]
[424372110,1780806645000,-500.0,0.00019178,2]
[424372113,1780806645000,-1000.76,0.00019178,2]
[424372119,1780806645000,-603.77137508,0.00019178,2]
[424372114,1780806645000,-500.0,0.00019178,2]
[424372116,1780806645000,-500.0,0.00019178,2]
[424372118,1780806645000,-500.0,0.00019178,2]
[424372115,1780806645000,-500.0,0.00019178,2]
[424372117,1780806645000,-500.0,0.00019178,2]
[424372122,1780806645000,-1211.88,0.00019178,2]
[424372120,1780806645000,-500.0,0.00019178,2]
[424372123,1780806645000,-672.61,0.00019178,2]
[424372121,1780806645000,-1420.18,0.00019178,2]
[424372124,1780806645000,-500.0,0.00019178,2]
[424372125,1780806645000,-1153.95,0.00019178,2]
[424372130,1780806645000,-1339.47,0.00019178,2]
[424372126,1780806645000,-529.95306383,0.00019178,2]
[424372128,1780806645000,-500.0,0.00019178,2]
[424372131,1780806645000,-500.0,0.00019178,2]
[424372127,1780806645000,-243.20928261,0.00019178,2]
[424372129,1780806645000,-878.33,0.00019178,2]
[424372132,1780806645000,-500.0,0.00019178,2]
[424372073,1780806645000,-500.0,0.00019178,2]
[424372134,1780806645000,-500.0,0.00019178,2]
[424372103,1780806645000,-500.0,0.00019178,2]
[424372104,1780806645000,-654.03,0.00019178,2]
[424372133,1780806645000,-500.0,0.00019178,2]